bitfinex-derivatives/quotes_ETHF0:USTF0_20251226
["timestamp","ask_amount","ask_price","bid_price","bid_amount"]
[1766741440075,0.87816542,2968.3,2966.6,0.00505698]
[1766741440280,0.87816542,2968.2,2966.6,0.00505698]
[1766741440481,0.00197128,2968.4,2966.6,0.00505698]
[1766741440680,0.87819223,2968.3,2966.6,0.00505698]
[1766741440875,0.87819223,2968.2,2966.6,0.00505698]
[1766741441076,0.00197128,2968.4,2966.6,0.00505698]
[1766741441277,0.87819182,2968.3,2966.6,0.00505698]
[1766741441478,0.87819182,2968.2,2966.6,0.00505698]
[1766741441680,0.00197128,2968.4,2966.6,0.00505698]
[1766741441882,0.87822211,2968.3,2966.6,0.00505698]
[1766741442189,0.87822211,2968.2,2966.6,0.00505698]
[1766741442384,0.00197128,2968.4,2966.6,0.00505698]
[1766741442578,0.87825774,2968.3,2966.6,0.00505698]
[1766741442779,0.87825774,2968.2,2966.6,0.00505698]
[1766741442980,0.00197128,2968.4,2966.6,0.00505698]
[1766741443186,0.8782576,2968.3,2966.6,0.00505698]
[1766741443385,0.8782576,2968.2,2966.6,0.00505698]
[1766741443674,0.8782576,2968.1,2966.6,0.00505698]
[1766741443880,0.00197128,2968.4,2966.6,0.00505698]
[1766741444090,0.00197128,2968.4,2966.8,3.02129594]
[1766741444289,0.00197128,2968.4,2966.7,3.81489236]
[1766741445389,0.00197128,2968.4,2966.7,3.98354236]
[1766741449290,0.00197128,2968.4,2966.8,3.02129594]
[1766741449495,0.00197128,2968.4,2966.8,8.11529594]
[1766741451501,0.00197128,2968.4,2966.8,5.094]
[1766741452995,0.79359642,2968.1,2966.6,0.00505698]
[1766741454499,0.96216642,2968.1,2966.6,0.00505698]
[1766741455600,7.01916642,2968.1,2966.6,0.00505698]
[1766741463807,0.79359642,2967.7,2966.6,0.00505698]
[1766741464008,6.166,2967.6,2966.6,0.00505698]
[1766741476618,0.16858,2967.9,2966.6,0.00505698]
[1766741476912,6.302,2967.8,2966.6,0.00505698]
[1766741479917,7.09582939,2967.8,2966.6,0.00505698]
[1766741527168,6.302,2967.8,2966.6,0.00505698]
[1766741534074,0.79382939,2967.7,2966.6,0.00505698]
[1766741539976,6.302,2967.8,2966.6,0.00505698]
[1766741555498,6.47059,2967.8,2966.6,0.00505698]
[1766741561602,0.17053128,2968.4,2966.6,0.79888441]
[1766741561804,0.00197128,2968.4,2966.6,0.79888441]
[1766741561997,0.00197128,2968.4,2966.7,0.16865]
[1766741565006,0.00197128,2968.4,2966.8,0.16864]
[1766741565608,0.00197128,2968.4,2966.9,0.16863]
[1766741565808,0.00197128,2968.4,2967.0,5.102]
[1766741570814,0.00197128,2968.4,2967.0,5.099]
[1766741582726,0.00197128,2968.4,2966.9,0.16863]
[1766741582926,0.00197128,2968.4,2967.1,5.127]
[1766741583821,0.00197128,2968.4,2967.1,6.57701697]
[1766741589430,0.00197128,2968.4,2967.1,1.45001697]
[1766741589629,0.00197128,2968.4,2967.2,5.135]
[1766741599942,0.00197128,2968.4,2967.2,5.9283311]
[1766741603846,0.00435236,2969.1,2967.9,0.7933311]
[1766741604041,0.00435236,2969.1,2967.9,0.79763543]
[1766741604944,0.00435236,2969.1,2968.2,0.00505698]
[1766741605243,0.00435236,2969.1,2968.2,0.79838808]
[1766741607250,0.08487785,2969.8,2968.2,0.79838808]
[1766741607843,0.7933311,2969.6,2968.2,0.79838808]
[1766741608045,0.79699876,2969.6,2968.2,0.79838808]
[1766741613647,0.00366766,2969.6,2968.2,0.79838808]
[1766741619569,0.00366766,2969.6,2968.2,0.00505698]
[1766741621774,0.7933311,2969.5,2968.2,0.00505698]
[1766741623671,0.00366766,2969.6,2968.2,0.00505698]
[1766741624277,0.00366766,2969.6,2968.3,0.7933311]
[1766741625777,0.00366766,2969.6,2968.4,0.7933311]
[1766741627884,0.00366766,2969.6,2968.4,2.2456767]
[1766741628183,0.00366766,2969.6,2968.4,2.26692819]
[1766741628586,0.00366766,2969.6,2968.4,0.7933311]
[1766741629485,0.00366766,2969.6,2968.4,2.26692819]
[1766741630286,0.00366766,2969.6,2968.5,5.149]
[1766741633086,0.7933311,2969.3,2968.2,0.00505698]
[1766741633290,0.7933311,2969.0,2968.2,0.00505698]
[1766741635682,0.7933311,2968.7,2968.2,0.00505698]
[1766741635889,0.79838808,2968.7,2967.9,0.00430433]
[1766741636891,0.79838808,2968.7,2968.0,0.00505698]
[1766741637484,0.00505698,2968.7,2968.0,0.00505698]
[1766741645092,0.5,2968.6,2968.0,0.00505698]
[1766741645291,0.00505698,2968.7,2968.0,0.79838808]
[1766741645491,0.7933311,2969.2,2968.0,0.00505698]
[1766741645794,0.00366766,2969.6,2968.0,0.00505698]
[1766741645994,0.7933311,2969.3,2968.0,0.00505698]
[1766741650695,0.79699876,2969.6,2968.0,0.79838808]
[1766741650901,0.00366766,2969.6,2968.3,0.7933311]
[1766741653696,0.00366766,2969.6,2968.0,0.79838808]
[1766741660803,0.7933311,2969.4,2968.0,0.79838808]
[1766741661910,0.00366766,2969.6,2968.0,0.00505698]
[1766741663619,0.00366766,2969.6,2968.1,5.226]
[1766741666730,0.00366766,2969.6,2968.1,6.87780275]
[1766741667028,0.00366766,2969.6,2968.3,0.79294786]
[1766741667322,0.25529762,2970.3,2968.3,0.96150786]
[1766741667523,0.25529762,2970.3,2968.4,0.16855]
[1766741667824,0.16845,2970.3,2968.5,5.245]
[1766741668827,0.17225374,2970.3,2968.5,5.245]
[1766741671736,0.17225374,2970.3,2968.5,6.7230915]
[1766741673031,0.00380374,2970.3,2968.5,6.7230915]
[1766741673332,0.00380374,2970.3,2969.2,0.79294786]
[1766741673531,0.00380374,2970.3,2969.3,5.241]
[1766741673830,0.00380374,2970.3,2969.5,0.00505698]
[1766741674628,3.74e-06,2970.3,2969.5,0.00505698]
[1766741675226,3.74e-06,2970.3,2969.5,5.24605698]
[1766741675427,3.74e-06,2970.3,2969.5,0.00505698]
[1766741702660,0.79294786,2970.2,2968.3,8.24929594]
[1766741702858,0.16845374,2970.3,2968.3,5.228]
[1766741703454,0.00505698,2969.6,2969.0,0.00505698]
[1766741705260,0.16845374,2970.3,2969.0,0.00505698]
[1766741718167,3.74e-06,2970.3,2969.0,0.00505698]
[1766741718469,3.74e-06,2970.3,2969.1,0.79294786]
[1766741718979,3.74e-06,2970.3,2969.1,2.27659798]
[1766741719368,3.74e-06,2970.3,2969.1,2.44510798]
[1766741721061,3.74e-06,2970.3,2969.1,1.65216012]
[1766741721669,3.74e-06,2970.3,2969.2,0.16851]
[1766741722168,3.74e-06,2970.3,2969.7,0.79204465]
[1766741722371,0.79204465,2971.2,2969.7,0.79204465]
[1766741722862,0.16838,2971.5,2969.5,1.62908177]
[1766741723069,0.16838,2971.5,2970.0,0.79204465]
[1766741723271,0.17269207,2971.5,2970.0,0.79637515]
[1766741724268,0.96473672,2971.5,2970.0,0.79637515]
[1766741725067,0.96473672,2971.5,2970.0,2.28855802]
[1766741725267,0.79204465,2971.2,2970.0,1.49651337]
[1766741725467,0.79204465,2971.2,2970.0,0.0043305]
[1766741728868,0.79204465,2970.9,2970.0,0.0043305]
[1766741729568,0.79204465,2971.0,2970.0,0.0043305]
[1766741731072,0.79204465,2970.4,2969.1,1.44095868]
[1766741731576,0.79204465,2970.4,2969.1,2.23300333]
[1766741731770,0.79204465,2970.7,2969.1,2.23300333]
[1766741732078,0.79204465,2970.7,2969.1,2.23669397]
[1766741733079,0.79204465,2970.7,2969.4,0.79204465]
[1766741736080,0.79204465,2970.7,2969.2,0.79204465]
[1766741744385,0.16841,2970.9,2969.5,0.79204465]
[1766741744575,0.16841,2970.9,2969.8,0.79204465]
[1766741746079,0.16841,2970.9,2969.6,0.79204465]
[1766741746275,0.79204465,2971.3,2969.6,0.79204465]
[1766741746578,0.86590741,2971.2,2969.6,0.79204465]
[1766741746779,0.79204465,2971.3,2969.6,0.79204465]
[1766741747085,0.86590517,2971.2,2969.6,0.79204465]
[1766741747285,0.79204465,2971.0,2969.6,0.79204465]
[1766741748887,0.79204465,2971.0,2969.2,0.96055465]
[1766741749087,0.79204465,2971.0,2969.6,0.79204465]
[1766741749586,0.79204465,2971.1,2969.6,0.79204465]
[1766741752190,0.16838,2971.4,2969.6,0.79204465]
[1766741752392,0.79204465,2971.1,2969.6,0.79204465]
[1766741753690,0.79204465,2971.2,2969.6,0.79204465]
[1766741756695,0.86693631,2971.1,2969.6,0.79204465]
[1766741756896,0.79204465,2971.2,2969.6,0.79204465]
[1766741757093,0.86693631,2971.1,2969.6,0.79204465]
[1766741757297,0.79204465,2971.2,2969.6,0.79204465]
[1766741757497,0.86705384,2971.1,2969.6,0.79204465]
[1766741757696,0.79204465,2971.2,2969.6,0.79204465]
[1766741757896,0.86705384,2971.1,2969.6,0.79204465]
[1766741758192,0.79204465,2971.2,2969.6,0.79204465]
[1766741758400,0.86719198,2971.1,2969.6,0.79204465]
[1766741758596,0.79204465,2971.2,2969.6,0.79204465]
[1766741758896,0.86719198,2971.1,2969.6,0.79204465]
[1766741759098,0.79204465,2971.2,2969.6,0.79204465]
[1766741759292,0.86728247,2971.1,2969.6,0.79204465]
[1766741759493,0.79204465,2971.2,2969.6,0.79204465]
[1766741759686,0.86728246,2971.1,2969.6,0.79204465]
[1766741759890,0.79204465,2971.2,2969.6,0.79204465]
[1766741760087,0.86728246,2971.1,2969.6,0.79204465]
[1766741760292,0.79204465,2971.2,2969.6,0.79204465]
[1766741760488,0.8673998,2971.1,2969.6,0.79204465]
[1766741760699,0.79204465,2971.2,2969.6,0.79204465]
[1766741760901,0.8673998,2971.1,2969.6,0.79204465]
[1766741761199,0.79204465,2971.2,2969.6,0.79204465]
[1766741761401,0.86738696,2971.1,2969.6,0.79204465]
[1766741761590,0.79204465,2971.2,2969.6,0.79204465]
[1766741761791,0.86737656,2971.1,2969.6,0.79204465]
[1766741761990,0.79204465,2971.2,2969.6,0.79204465]
[1766741762191,0.79204465,2970.9,2969.4,0.79204465]
[1766741765294,0.79204465,2970.9,2969.2,0.16851]
[1766741765493,0.79204465,2970.6,2969.2,0.16851]
[1766741765693,0.79204465,2970.7,2969.2,0.16851]
[1766741766906,0.79204465,2970.7,2969.3,0.79204465]
[1766741767108,0.96045465,2971.0,2969.6,0.79204465]
[1766741768800,0.79635672,2971.5,2969.9,0.79204465]
[1766741769007,1.65979706,2971.4,2969.9,0.79204465]
[1766741769304,0.86775241,2971.3,2969.9,0.79204465]
[1766741769607,0.79204465,2971.4,2969.9,0.79204465]
[1766741769810,0.86762093,2971.3,2969.9,0.79204465]
[1766741770110,0.79204465,2971.4,2969.7,0.79204465]
[1766741770300,0.86764629,2971.3,2969.7,0.79204465]
[1766741770501,0.79204465,2971.4,2969.7,0.79204465]
[1766741770708,0.86755654,2971.3,2969.7,0.79204465]
[1766741770901,0.79204465,2971.4,2969.7,0.79204465]
[1766741771102,0.86755693,2971.3,2969.7,0.79204465]
[1766741771303,0.79204465,2971.4,2969.7,0.79204465]
[1766741771607,0.86751868,2971.3,2969.7,0.79204465]
[1766741771906,0.79204465,2971.4,2969.7,0.79204465]
[1766741772108,0.79204465,2971.1,2969.7,0.79204465]
[1766741773007,0.79204465,2971.1,2969.3,3.02129594]
[1766741773209,0.79204465,2971.1,2969.6,0.79204465]
[1766741773907,0.79204465,2971.1,2969.5,0.79204465]
[1766741776411,0.79204465,2971.1,2969.2,3.18980594]
[1766741776604,0.79204465,2971.1,2969.4,0.79204465]
[1766741779323,0.79204465,2971.1,2969.7,0.79204465]
[1766741779612,0.1684,2971.2,2969.7,0.79204465]
[1766741780907,0.1684,2971.2,2970.0,0.79204465]
[1766741781410,0.00431207,2971.5,2970.0,0.79204465]
[1766741781619,0.86748914,2971.4,2970.0,0.79204465]
[1766741781919,0.00431207,2971.5,2970.0,0.79204465]
[1766741782113,0.86748614,2971.4,2970.0,0.79204465]
[1766741782314,0.00431207,2971.5,2970.0,0.79204465]
[1766741783613,0.79204465,2971.3,2970.0,0.79204465]
[1766741784019,0.00431207,2971.5,2969.6,1.48998318]
[1766741794218,0.00431207,2971.5,2969.9,0.79198623]
[1766741794816,0.00431207,2971.5,2969.7,0.16848]
[1766741797115,0.8586962,2971.4,2969.7,0.16848]
[1766741797315,0.17269207,2971.5,2969.7,0.16848]
[1766741797516,0.85883628,2971.4,2969.7,0.16848]
[1766741797816,0.85883628,2971.3,2969.6,1.48998318]
[1766741798215,0.85883628,2971.3,2969.2,3.02129594]
[1766741798421,0.79198623,2971.0,2969.1,4.63445526]
[1766741801423,0.79198623,2971.0,2969.1,1.61315932]
[1766741802020,0.96041623,2970.6,2969.1,0.00369064]
[1766741802426,0.16843,2970.6,2969.1,0.00369064]
[1766741809333,0.00505698,2970.1,2968.7,11.7866497]
[1766741810326,0.00505698,2970.1,2969.1,0.00505698]
[1766741810627,0.00505698,2970.1,2969.1,5.21505698]
[1766741812226,0.16068698,2970.6,2969.1,5.21505698]
[1766741828556,0.1684,2971.2,2969.1,5.21505698]
[1766741828758,0.86316297,2971.1,2969.1,5.21505698]
[1766741829059,1.21178904,2971.5,2969.1,5.21505698]
[1766741829060,0.00431207,2971.5,2969.7,0.96045623]
[1766741829250,0.00431207,2971.5,2969.8,5.271]
[1766741829855,0.00431207,2971.5,2969.9,5.271]
[1766741830546,1.207e-05,2971.5,2970.6,0.79198623]
[1766741830745,0.96029623,2972.7,2970.8,0.00505698]
[1766741830952,0.79198623,2972.3,2970.8,0.00505698]
[1766741831652,0.21317213,2971.9,2970.8,0.00860588]
[1766741836257,1.00515836,2971.9,2970.8,5.88e-06]
[1766741837160,1.00515836,2971.9,2971.1,0.00504821]
[1766741837161,0.00502777,2971.6,2971.1,0.00504821]
[1766741837361,0.00502777,2971.6,2970.8,5.88e-06]
[1766741838262,0.00502777,2971.6,2970.9,0.00504821]
[1766741842362,0.00502777,2971.6,2970.8,5.88e-06]
[1766741842566,0.00502777,2971.6,2969.9,4.489]
[1766741843457,0.00502777,2971.6,2970.5,0.00504821]
[1766741844064,0.79686709,2971.6,2970.5,0.00504821]
[1766741845170,0.00502777,2971.6,2970.5,0.00504821]
[1766741845466,0.79686709,2971.6,2970.5,0.00504821]
[1766741849866,0.00502777,2971.6,2970.5,0.00504821]
[1766741866392,0.79686709,2971.6,2970.5,0.00504821]
[1766741869878,0.00502777,2971.6,2970.5,0.00504821]
[1766741870084,0.79686709,2971.6,2970.5,0.00504821]
[1766741870887,0.79183932,2971.3,2970.5,0.00504821]
[1766741871085,0.79183932,2970.6,2969.9,0.00241016]
[1766741871780,0.79183932,2970.9,2969.9,0.00241016]
[1766741871982,0.79183932,2970.9,2970.1,0.00504821]
[1766741877185,0.79183932,2970.6,2970.1,4.821e-05]
[1766741877386,0.79183932,2970.6,2969.3,1.47169204]
[1766741877584,0.16841,2970.9,2969.3,1.47169204]
[1766741877585,0.79183932,2970.3,2969.3,1.47169204]
[1766741877986,0.79183932,2970.3,2968.9,0.16853]
[1766741878491,0.00504821,2969.9,2969.3,0.00504821]
[1766741884588,0.00504821,2969.9,2969.4,0.79183932]
[1766741884895,0.16842,2970.7,2969.4,0.79183932]
[1766741885497,0.79183932,2970.6,2969.3,0.00504821]
[1766741885799,0.00504821,2970.2,2969.3,0.00504821]
[1766741891496,0.16842,2970.7,2969.3,0.00504821]
[1766741892491,0.00504821,2970.3,2969.3,0.00504821]
[1766741892892,0.00504821,2970.3,2969.5,0.79183932]
[1766741894108,0.00504821,2970.3,2969.3,0.00504821]
[1766741896708,0.00504821,2970.3,2969.5,0.79183932]
[1766741898708,0.00504821,2970.3,2969.3,0.00504821]
[1766741903123,0.79183932,2970.1,2969.3,0.00504821]
[1766741904021,0.00504821,2970.3,2969.3,0.00504821]
[1766741905325,0.00504821,2970.3,2968.9,0.00377135]
[1766741906219,0.00504821,2970.3,2969.3,0.00504821]
[1766741909930,0.00504821,2970.3,2968.9,0.00377135]
[1766741910322,40.80504821,2970.3,2968.9,0.00377135]
[1766741910825,40.80504821,2970.3,2969.3,0.00504821]
[1766741911033,0.00504821,2970.3,2969.3,0.00504821]
[1766741912328,6.232,2970.2,2969.3,0.00504821]
[1766741915126,6.232,2970.2,2968.9,0.00377135]
[1766741915926,6.40045,2970.2,2968.9,0.00377135]
[1766741916127,6.40045,2970.2,2969.3,0.00338592]
[1766741918235,6.40045,2970.2,2968.9,0.00377135]
[1766741923935,0.16846,2970.1,2968.9,0.00377135]
[1766741925942,6.348,2970.0,2968.9,0.00377135]
[1766741928339,6.51646,2970.0,2968.9,0.00377135]
[1766741937950,0.16846,2970.0,2968.9,0.00377135]
[1766741938247,6.453,2969.9,2968.9,0.00377135]
[1766741939451,6.62147,2969.9,2968.9,0.00377135]
[1766741939750,1.03011335,2969.8,2968.3,0.11821566]
[1766741939940,0.16848,2969.8,2968.3,0.11821566]
[1766741940544,0.17128465,2969.8,2968.3,0.1205764]
[1766741941150,2.349,2969.7,2968.3,0.1205764]
[1766741944548,0.17128465,2969.8,2968.3,0.1205764]
[1766741944752,6.464,2969.7,2968.3,0.1205764]
[1766741945651,0.17128465,2969.8,2968.3,0.1205764]
[1766741945850,6.63428465,2969.8,2968.3,0.1205764]
[1766741965963,6.63428465,2969.8,2968.4,0.79281482]
[1766741975868,0.79281482,2969.6,2968.3,0.1205764]
[1766741976076,0.79281482,2969.0,2967.5,1.56033713]
[1766741976285,0.00504821,2968.5,2967.5,1.56033713]
[1766741976575,0.00504821,2968.5,2967.7,0.79281482]
[1766741977078,0.00504821,2968.5,2967.7,0.79592914]
[1766741984474,0.00504821,2968.5,2967.7,0.00311432]
[1766741984670,0.00504821,2968.5,2967.9,0.79281482]
[1766741998104,0.1685,2969.4,2967.9,0.79281482]
[1766741998301,6.58,2969.3,2968.2,0.79281482]
[1766741998502,6.579,2969.3,2968.2,0.79281482]
[1766741999107,0.00504821,2969.0,2968.5,0.00504821]
[1766742001906,2.837,2969.5,2968.5,0.00504821]
[1766742002092,6.577,2969.6,2968.5,0.00504821]
[1766742002902,0.00504821,2969.3,2968.5,0.00504821]
[1766742004706,0.00504821,2969.3,2968.5,0.79786303]
[1766742005003,0.00280465,2969.8,2968.8,0.79281482]
[1766742006100,0.00504821,2969.6,2968.8,0.79281482]
[1766742009210,0.00504821,2969.6,2968.5,0.79786303]
[1766742009408,0.00504821,2969.6,2968.5,0.00504821]
[1766742012106,0.00504821,2969.6,2968.7,0.79281482]
[1766742017520,0.00504821,2969.6,2968.5,0.00504821]
[1766742017521,0.00504821,2969.6,2968.5,0.79786303]
[1766742025922,0.00504821,2969.6,2968.5,0.00504821]
[1766742028131,4.821e-05,2969.6,2968.5,0.00504821]
[1766742034127,4.821e-05,2969.6,2968.7,0.79264782]
[1766742041530,4.821e-05,2969.6,2968.5,0.00504821]
[1766742069651,0.00280465,2969.8,2968.6,0.79264782]
[1766742070653,0.00504821,2969.5,2968.6,0.79264782]
[1766742070854,0.00280465,2969.8,2968.6,0.79264782]
[1766742071659,0.08603576,2970.1,2968.6,0.79264782]
[1766742072761,0.08871404,2970.1,2968.6,0.79264782]
[1766742072958,0.00336548,2969.6,2968.6,0.79264782]
[1766742078459,0.05861443,2970.7,2969.0,0.79264782]
[1766742078665,0.86689047,2970.6,2969.0,0.79264782]
[1766742078857,0.86689047,2970.5,2968.9,0.79264782]
[1766742079056,0.05861443,2970.7,2968.9,0.79264782]
[1766742079252,0.86655976,2970.6,2968.9,0.79264782]
[1766742079458,0.16844,2970.4,2968.9,0.79264782]
[1766742081156,0.16844,2970.4,2968.7,0.0008]
[1766742081562,0.86631127,2970.3,2968.7,0.0008]
[1766742081761,0.16844,2970.4,2968.7,0.0008]
[1766742081960,0.86632795,2970.3,2968.7,0.0008]
[1766742082156,0.16844,2970.4,2968.7,0.0008]
[1766742082362,0.86632215,2970.3,2968.7,0.0008]
[1766742082667,0.16844,2970.4,2968.7,0.0008]
[1766742082866,0.86632131,2970.3,2968.7,0.0008]
[1766742083061,0.16844,2970.4,2968.7,0.0008]
[1766742083265,0.86631726,2970.3,2968.7,0.0008]
[1766742083465,0.16844,2970.4,2968.7,0.0008]
[1766742083672,0.86631726,2970.3,2968.7,0.0008]
[1766742083874,0.16844,2970.4,2968.7,0.0008]
[1766742084077,0.86631726,2970.3,2968.7,0.0008]
[1766742084267,0.16844,2970.4,2968.7,0.0008]
[1766742084469,0.86631449,2970.3,2968.7,0.0008]
[1766742084671,0.16844,2970.4,2968.7,0.0008]
[1766742084979,0.86631449,2970.3,2968.7,0.0008]
[1766742085276,0.16844,2970.4,2968.7,0.0008]
[1766742085575,0.86631645,2970.3,2968.7,0.0008]
[1766742085776,0.16844,2970.4,2968.7,0.0008]
[1766742085972,0.86631645,2970.3,2968.5,0.00504821]
[1766742086178,0.16844,2970.4,2968.5,0.00504821]
[1766742086475,0.86631911,2970.3,2968.5,0.00504821]
[1766742086670,0.16844,2970.4,2968.5,0.00504821]
[1766742086976,0.86631911,2970.3,2968.5,0.00504821]
[1766742087181,0.16844,2970.4,2968.5,0.00504821]
[1766742087369,0.86632363,2970.3,2968.5,0.00504821]
[1766742087673,0.16844,2970.4,2968.5,0.00504821]
[1766742087978,0.86632334,2970.3,2968.9,0.79255006]
[1766742088179,0.96099006,2970.4,2968.9,0.79255006]
[1766742088480,0.86632842,2970.3,2968.9,0.79255006]
[1766742088674,0.96099006,2970.4,2968.9,0.79255006]
[1766742088875,0.86632843,2970.3,2968.9,0.79255006]
[1766742089074,0.96099006,2970.4,2968.9,0.79255006]
[1766742089368,0.86633641,2970.3,2969.2,0.79255006]
[1766742089574,0.16844,2970.4,2969.2,0.79255006]
[1766742090375,0.16844,2970.4,2968.7,1.24811958]
[1766742090580,0.00291172,2970.6,2969.3,0.79255006]
[1766742090780,0.86620759,2970.5,2969.3,0.79255006]
[1766742090981,0.00291172,2970.6,2969.3,0.79255006]
[1766742091380,0.86613456,2970.5,2969.3,0.79255006]
[1766742091579,0.00291172,2970.6,2969.3,0.79255006]
[1766742091780,0.86613456,2970.5,2969.3,0.79255006]
[1766742092081,0.00291172,2970.6,2969.3,0.79255006]
[1766742092283,0.86608773,2970.5,2969.3,0.79255006]
[1766742092580,0.00291172,2970.6,2969.3,0.79255006]
[1766742092780,0.86608773,2970.5,2969.3,0.79255006]
[1766742092981,0.00291172,2970.6,2969.3,0.79255006]
[1766742093376,0.86605747,2970.5,2969.3,0.79255006]
[1766742093680,0.00291172,2970.6,2969.3,0.79255006]
[1766742095182,0.79546178,2970.6,2969.3,0.79255006]
[1766742099085,0.86307054,2970.5,2969.3,0.79255006]
[1766742099384,0.79546178,2970.6,2969.3,0.79255006]
[1766742099585,0.86307054,2970.5,2969.3,0.79255006]
[1766742099782,0.79546178,2970.6,2969.3,0.79255006]
[1766742099983,0.86307054,2970.5,2969.3,0.79255006]
[1766742100184,0.79546178,2970.6,2969.3,0.79255006]
[1766742100482,0.86306421,2970.5,2969.3,0.79255006]
[1766742100682,0.79546178,2970.6,2969.3,0.79255006]
[1766742100887,0.86306421,2970.5,2969.3,0.79255006]
[1766742101074,0.79546178,2970.6,2969.3,0.79255006]
[1766742101377,0.86306567,2970.5,2969.3,0.79255006]
[1766742101575,0.00291172,2970.6,2969.3,0.79255006]
[1766742101778,0.86306567,2970.5,2969.3,0.79255006]
[1766742101987,0.00291172,2970.6,2969.3,0.79255006]
[1766742102286,0.86306426,2970.5,2969.3,0.79255006]
[1766742102484,0.00291172,2970.6,2969.3,0.79255006]
[1766742102684,0.86307107,2970.5,2969.3,0.79255006]
[1766742102886,0.00291172,2970.6,2969.3,0.79255006]
[1766742103188,0.86307107,2970.5,2969.3,0.79255006]
[1766742103381,0.00291172,2970.6,2969.3,0.79255006]
[1766742103582,0.86308467,2970.5,2969.3,0.79255006]
[1766742103783,0.00291172,2970.6,2969.3,0.79255006]
[1766742104084,0.86308467,2970.5,2969.3,0.79255006]
[1766742104384,0.00291172,2970.6,2969.3,0.79255006]
[1766742104585,0.86310856,2970.5,2969.3,0.79255006]
[1766742104786,6.45491172,2970.6,2969.3,0.79255006]
[1766742104987,0.86310798,2970.5,2969.3,0.79255006]
[1766742105186,6.45491172,2970.6,2969.3,0.79255006]
[1766742105484,0.86314055,2970.5,2969.3,0.79255006]
[1766742105687,6.45491172,2970.6,2969.3,0.79255006]
[1766742105887,0.86314055,2970.5,2969.3,0.79255006]
[1766742106087,6.45491172,2970.6,2969.3,0.79255006]
[1766742106288,0.86318138,2970.5,2969.3,0.79255006]
[1766742106478,6.45491172,2970.6,2969.3,0.79255006]
[1766742106679,0.86318138,2970.5,2969.3,0.79255006]
[1766742106883,6.45491172,2970.6,2969.3,0.79255006]
[1766742107190,0.86318138,2970.5,2969.3,0.79255006]
[1766742107383,6.45491172,2970.6,2969.3,0.79255006]
[1766742107584,0.86323256,2970.5,2969.3,0.79255006]
[1766742107882,6.45491172,2970.6,2969.3,0.79255006]
[1766742108082,0.86323256,2970.5,2969.3,0.79255006]
[1766742108282,6.45491172,2970.6,2969.3,0.79255006]
[1766742108482,0.86329406,2970.5,2969.3,0.79255006]
[1766742108684,6.45491172,2970.6,2969.3,0.79255006]
[1766742108983,0.86329181,2970.5,2969.3,0.79255006]
[1766742109181,0.96099006,2970.5,2969.0,0.79255006]
[1766742109382,0.86334638,2970.4,2969.0,0.79255006]
[1766742109583,0.96099006,2970.5,2969.0,0.79255006]
[1766742109784,0.86333858,2970.4,2969.0,0.79255006]
[1766742109984,0.96099006,2970.5,2969.0,0.79255006]
[1766742110190,0.86333913,2970.4,2969.0,0.79255006]
[1766742110387,0.96099006,2970.5,2969.0,0.79255006]
[1766742110688,0.8633409,2970.4,2969.0,0.79255006]
[1766742110889,0.96099006,2970.5,2969.0,0.79255006]
[1766742111090,0.86336258,2970.4,2969.0,0.79255006]
[1766742111290,0.96099006,2970.5,2969.0,0.79255006]
[1766742111492,0.86335439,2970.4,2969.0,0.79255006]
[1766742111791,0.96099006,2970.5,2969.0,0.79255006]
[1766742111994,0.86335569,2970.4,2969.0,0.79255006]
[1766742112296,0.96099006,2970.5,2969.0,0.79255006]
[1766742112489,0.86339032,2970.4,2969.0,0.79255006]
[1766742112689,0.96099006,2970.5,2969.0,0.79255006]
[1766742112989,0.86339032,2970.4,2969.0,0.79255006]
[1766742113184,0.96099006,2970.5,2969.0,0.79255006]
[1766742113396,0.86342388,2970.4,2969.0,0.79255006]
[1766742113695,0.96099006,2970.5,2969.0,0.79255006]
[1766742113897,0.86342388,2970.4,2969.0,0.79255006]
[1766742114196,0.96099006,2970.5,2969.0,0.79255006]
[1766742114396,0.86345982,2970.4,2969.0,0.79255006]
[1766742114598,0.96099006,2970.5,2969.0,0.79255006]
[1766742114898,0.86345982,2970.4,2969.0,0.79255006]
[1766742115098,6.445,2970.4,2969.3,0.79255006]
[1766742119106,0.86373638,2970.3,2969.3,0.79255006]
[1766742119304,6.445,2970.4,2969.3,0.79255006]
[1766742119501,0.86373679,2970.3,2969.3,0.79255006]
[1766742119796,6.445,2970.4,2969.3,0.79255006]
[1766742119996,0.86373679,2970.3,2969.1,0.79255006]
[1766742120310,6.445,2970.4,2969.1,0.79255006]
[1766742120514,7.3087279,2970.3,2969.1,0.79255006]
[1766742120808,6.445,2970.3,2969.1,0.79255006]
[1766742127422,6.443,2970.2,2969.1,0.79255006]
[1766742133816,0.16844,2970.5,2969.1,0.79255006]
[1766742134010,7.30329942,2970.4,2969.1,0.79255006]
[1766742134308,0.86229942,2970.3,2969.1,0.79255006]
[1766742147920,0.86229942,2970.3,2968.7,2.04055308]
[1766742158932,6.422,2970.3,2968.7,2.04055308]
[1766742159129,6.422,2970.3,2969.1,0.7924335]
[1766742159327,0.16844,2970.4,2969.1,0.7924335]
[1766742162734,0.16844,2970.4,2969.0,0.7924335]
[1766742167631,6.41691172,2970.6,2969.0,0.7924335]
[1766742195384,0.86656452,2970.5,2969.0,0.7924335]
[1766742195682,6.41691172,2970.6,2969.0,0.7924335]
[1766742195884,0.86656452,2970.5,2969.4,0.7924335]
[1766742196180,0.00291172,2970.6,2969.4,0.7924335]
[1766742198676,0.00291172,2970.6,2969.2,0.7924335]
[1766742209891,0.00291172,2970.6,2968.9,3.18981594]
[1766742210196,0.00291172,2970.6,2969.6,0.79222217]
[1766742232213,0.00291172,2970.6,2969.9,0.79222217]
[1766742232414,0.00291172,2970.6,2969.9,0.79541651]
[1766742233116,6.375,2971.0,2969.9,0.79541651]
[1766742233317,6.375,2971.0,2970.2,0.00504821]
[1766742233318,0.86641754,2970.9,2970.2,0.00504821]
[1766742233511,0.86641754,2970.8,2970.2,0.00504821]
[1766742233712,0.86641754,2970.7,2970.2,0.00504821]
[1766742233911,6.375,2971.0,2970.2,0.00504821]
[1766742234111,0.86641811,2970.9,2970.2,0.00504821]
[1766742234318,0.86641811,2970.8,2970.2,0.00504821]
[1766742234520,6.37761305,2971.0,2970.2,0.00504821]
[1766742234710,0.86631891,2970.9,2970.2,0.00504821]
[1766742234910,0.86631891,2970.8,2970.2,0.00504821]
[1766742235111,6.37761305,2971.0,2970.2,0.00504821]
[1766742235312,0.86624623,2970.9,2970.2,0.00504821]
[1766742235512,0.86624623,2970.8,2970.2,0.00504821]
[1766742235711,6.37761305,2971.0,2970.2,0.00504821]
[1766742235912,0.86624664,2970.9,2970.2,0.00504821]
[1766742236212,0.86624664,2970.8,2970.2,0.00504821]
[1766742236520,6.37761305,2971.0,2970.2,0.00504821]
[1766742236714,0.86619119,2970.9,2970.2,0.00504821]
[1766742237014,0.86619119,2970.8,2970.2,0.00504821]
[1766742237214,6.37761305,2971.0,2970.2,0.00504821]